fUST/lending_fUST_20241109
["ID","MTS","AMOUNT","RATE_DAILY","PERIOD"]
[341730691,1731160243876,-1213.27,0.00027968,2]
[341730693,1731160243886,-262.16687,0.00028,120]
[341730695,1731160243895,-200.0,0.00028,120]
[341730697,1731160243904,-157.882,0.0002806,109]
[341730700,1731160243914,-546.82,0.00028182,2]
[341730702,1731160243923,-500.0,0.00028182,2]
[341730703,1731160243932,-1213.27,0.00028242,2]
[341730706,1731160243942,-500.0,0.000283,5]
[341730707,1731160243951,-500.0,0.000283,5]
[341730710,1731160243961,-500.0,0.000283,5]
[341730712,1731160243970,-305.9382545,0.00028384,30]
[341730713,1731160243980,-546.82,0.00028456,2]
[341730715,1731160243989,-453.28801687,0.00028456,2]
[341730718,1731160243999,-164.749073,0.000285,13]
[341730720,1731160244008,-1213.3166373,0.00028516,2]
[341730721,1731160244017,-1134.2,0.000286,2]
[341730723,1731160244028,-224.610666,0.000286,2]
[341730725,1731160244038,-150.112233,0.000287,20]
[341730727,1731160244047,-823.0,0.00028714,2]
[341730729,1731160244056,-546.82,0.0002873,2]
[341730731,1731160244066,-500.0,0.00028785,5]
[341730733,1731160244075,-157.867,0.00028997,120]
[341730735,1731160244084,-150.112233,0.00029,19]
[341730737,1731160244093,-546.82,0.00029004,2]
[341730739,1731160244102,-150.112233,0.000291,15]
[341730742,1731160244112,-210.062925,0.00029198,2]
[341730743,1731160244121,-268.696701,0.00029198,2]
[341730745,1731160244130,-210.062926,0.00029198,2]
[341730748,1731160244140,-203.455725,0.00029198,2]
[341730750,1731160244150,-175.175795,0.00029198,2]
[341730752,1731160244159,-223.772822,0.00029198,2]
[341730754,1731160244168,-172.557036,0.00029198,2]
[341730755,1731160244177,-191.195813,0.00029198,2]
[341730759,1731160244192,-202.679862,0.00029198,2]
[341730761,1731160244392,-249.00871444,0.00029207,30]
[341730762,1731160244475,-10646.54232321,0.00029255,2]
[341730764,1731160244550,-546.97869911,0.00029278,2]
[341730765,1731160244627,-150.112241,0.000293,11]
[341730767,1731160244742,-914.82,0.00029437,2]
[341730769,1731160244811,-1364.711,0.00029437,2]
[341730771,1731160244913,-150.112233,0.000295,18]
[341730773,1731160244990,-210.062925,0.00029563,2]
[341730774,1731160245065,-268.696701,0.00029563,2]
[341730776,1731160245125,-210.062926,0.00029563,2]
[341730778,1731160245137,-191.195813,0.00029563,2]
[341730780,1731160245148,-600.0,0.00029589,4]
[341730782,1731160245157,-150.112233,0.000296,18]
[341730784,1731160245167,-192.13851767,0.00029665,2]
[341730786,1731160245176,-1000.0,0.0002967,5]
[341730788,1731160245186,-1000.0,0.0002967,5]
[341730790,1731160245195,-1000.0,0.0002967,5]
[341730792,1731160245204,-500.0,0.00029673,5]
[341730794,1731160245213,-500.0,0.00029673,5]
[341730796,1731160245223,-500.0,0.00029673,5]
[341730798,1731160245231,-500.0,0.00029673,5]
[341730800,1731160245241,-175.175795,0.00029685,2]
[341730802,1731160245250,-5752.11317099,0.000297,2]
[341730804,1731160245260,-104052.5947232,0.000297,2]
[341730807,1731160245279,-4307.88423486,0.000297,2]
[341730838,1731160246100,-481.48,0.00022204,3]
[341730841,1731160246111,-207.34835451,0.00022205,2]
[341730844,1731160384848,2510.0,0.00031692,30]
[341730868,1731160653359,176.109545,0.00013973,2]
[341730869,1731160676644,53645.72389064,0.0002,30]
[341730894,1731161397839,176.109545,0.00013973,2]
[341730950,1731161432266,-300.0,0.00021916,2]
[341730952,1731161432275,-300.0,0.00021916,2]
[341730954,1731161432284,-500.0,0.00021917,2]
[341730956,1731161432294,-508.58510857,0.00021917,2]
[341730958,1731161432303,-500.0,0.00021917,2]
[341730960,1731161432319,-393.54540719,0.00021917,2]
[341730962,1731161432328,-502.90468829,0.00021917,2]
[341730964,1731161432338,-502.8854946,0.00021917,2]
[341730966,1731161432348,-502.29604936,0.00021917,2]
[341730968,1731161432359,-502.25495837,0.00021917,2]
[341730969,1731161432368,-570.0,0.00021917,2]
[341730970,1731161432379,-500.0,0.00021917,2]
[341730971,1731161432389,-500.0,0.00021917,2]
[341730972,1731161432399,-500.0,0.00021917,2]
[341730974,1731161432409,-500.0,0.00021917,2]
[341730976,1731161432421,-500.0,0.00021917,2]
[341730978,1731161432431,-586.78625986,0.00021917,2]
[341730980,1731161432441,-500.0,0.00021917,2]
[341730982,1731161432451,-500.0,0.00022191,2]
[341730984,1731161432460,-500.0,0.00022191,2]
[341730986,1731161432470,-500.0,0.00022191,2]
[341730988,1731161432480,-500.0,0.00022465,2]
[341730990,1731161432489,-500.0,0.00022465,2]
[341730992,1731161432499,-500.0,0.00022465,2]
[341730994,1731161432508,-500.0,0.00022739,2]
[341730996,1731161432517,-500.0,0.00022739,2]
[341730998,1731161432527,-500.0,0.00022739,2]
[341731000,1731161432536,-500.0,0.00022975,2]
[341731002,1731161432545,-500.0,0.00022975,2]
[341731004,1731161432555,-500.0,0.00022975,2]
[341731006,1731161432567,-500.0,0.00022975,2]
[341731008,1731161432576,-125.14203376,0.00022975,2]
[341731744,1731161440089,-508.98272828,0.00021917,2]
[341731746,1731161440099,-399.14851987,0.00022975,2]
[341731748,1731161440109,-513.55831829,0.00022975,2]
[341731750,1731161440118,-503.23851465,0.00022975,2]
[341731752,1731161440128,-508.72552695,0.00022975,2]
[341731754,1731161440138,-500.0,0.00022975,2]
[341731756,1731161440147,-500.0,0.00023013,2]
[341731758,1731161440157,-500.0,0.00023013,2]
[341731760,1731161440166,-500.0,0.00023013,2]
[341731762,1731161440175,-404.74750864,0.00023249,2]
[341731764,1731161440185,-500.0,0.00023287,2]
[341731766,1731161440195,-500.0,0.00023287,2]
[341731768,1731161440205,-500.0,0.00023287,2]
[341731770,1731161440215,-500.0,0.00023561,2]
[341731772,1731161440225,-500.0,0.00023561,2]
[341731774,1731161440234,-220.2157365,0.00023561,2]
[341731776,1731161440243,-420.0,0.00023817,2]
[341731778,1731161440253,-500.0,0.00023835,2]
[341731780,1731161440262,-500.0,0.00023835,2]
[341731782,1731161440271,-420.0,0.00024108,2]
[341731784,1731161440281,-500.0,0.00024109,2]
[341731786,1731161440290,-500.0,0.00024109,2]
[341731788,1731161440300,-500.0,0.00024383,2]
[341731790,1731161440310,-500.0,0.00024383,2]
[341731792,1731161440321,-500.0,0.00024657,2]
[341731794,1731161440331,-500.0,0.00024657,2]
[341731796,1731161440340,-500.0,0.00024729,2]
[341731798,1731161440350,-1866.8936,0.0002473,2]
[341731800,1731161440359,-81.47448654,0.00024931,2]
[341731941,1731161443214,-418.52551346,0.00024931,2]
[341731942,1731161443224,-500.0,0.00024931,2]
[341731943,1731161443233,-500.0,0.00025003,2]
[341731944,1731161443242,-1549.40301763,0.00025177,2]
[341731945,1731161443253,-500.0,0.00025205,2]
[341731946,1731161443262,-500.0,0.00025205,2]
[341731947,1731161443272,-500.0,0.00025277,2]
[341731948,1731161443282,-1866.8936,0.00025415,2]
[341731949,1731161443292,-500.0,0.00025479,2]
[341731950,1731161443302,-453.28801687,0.00025479,2]
[341731951,1731161443312,-500.0,0.00025551,2]
[341731952,1731161443324,-500.0,0.00025753,2]
[341731953,1731161443334,-500.0,0.00025825,2]
[341731954,1731161443343,-587.0,0.00025884,2]
[341731955,1731161443353,-155.63869911,0.00026027,2]
[341731956,1731161443363,-971.59820275,0.0002609,2]
[341731957,1731161443372,-1549.4030176,0.0002609,2]
[341731958,1731161443382,-500.0,0.00026099,2]
[341731959,1731161443391,-1866.8936,0.000261,2]
[341731960,1731161443400,-220.979795,0.00026305,2]
[341731961,1731161443409,-500.0,0.00026373,2]
[341731962,1731161443419,-587.0,0.00026518,2]
[341731963,1731161443428,-500.0,0.00026647,2]
[341731964,1731161443438,-298.3,0.00026921,2]
[341731965,1731161443447,-1549.4030176,0.00027003,2]
[341731966,1731161443456,-914.82,0.00027126,2]
[341731967,1731161443465,-1364.711,0.00027126,2]
[341731968,1731161443475,-157.977,0.0002789,30]
[341731969,1731161443484,-1549.4030176,0.00027916,2]
[341731970,1731161443493,-200.0,0.00028,120]
[341731971,1731161443502,-823.0,0.0002813,2]
[341731972,1731161443512,-158.196,0.0002852,109]
[341731973,1731161443521,-1134.2,0.000286,2]
[341731974,1731161443530,-157.913,0.0002872,2]
[341731975,1731161443540,-1549.4030176,0.0002883,2]
[341731976,1731161443549,-805.0,0.0002917,2]
[341731977,1731161443559,-657.18,0.00029198,2]
[341731978,1731161443568,-165.1,0.00029198,2]
[341731979,1731161443577,-163.00613,0.00029198,2]
[341731980,1731161443586,-268.696701,0.00029198,2]
[341731981,1731161443596,-152.830416,0.00029198,2]
[341731982,1731161443605,-172.557036,0.00029198,2]
[341731983,1731161443614,-213.226342,0.00029198,2]
[341731984,1731161443623,-157.299491,0.00029198,2]
[341731985,1731161443632,-157.384142,0.00029198,2]
[341731986,1731161443642,-224.610666,0.000294,2]
[341731987,1731161443651,-657.18,0.00029472,2]
[341731988,1731161443660,-157.299491,0.00029563,2]
[341731989,1731161443669,-500.0,0.00029588,2]
[341731990,1731161443678,-500.0,0.00029588,2]
[341731991,1731161443688,-500.0,0.00029588,2]
[341731992,1731161443697,-276.05139283,0.00029588,2]
[341731993,1731161443707,-262.16687,0.000296,120]
[341731994,1731161443717,-1000.0,0.000296,2]
[341731995,1731161443729,-614.0,0.000296,2]
[341731996,1731161443738,-501.40731008,0.00029673,5]
[341731997,1731161443747,-500.0,0.00029673,5]
[341731998,1731161443757,-500.0,0.00029673,5]
[341731999,1731161443767,-152.830416,0.00029685,2]
[341732000,1731161443777,-590.43088685,0.00029689,2]
[341732001,1731161443786,-500.0,0.00029689,2]
[341732002,1731161443795,-450.0,0.00029689,2]
[341732003,1731161443806,-500.0,0.00029689,2]
[341732004,1731161443815,-500.0,0.00029689,2]
[341732005,1731161443825,-500.0,0.00029689,2]
[341732006,1731161443834,-309.86088745,0.00029689,2]
[341732007,1731161443843,-500.0,0.00029689,2]
[341732008,1731161443853,-559.25547923,0.00029689,2]
[341732009,1731161443862,-500.0,0.00029689,2]
[341732010,1731161443872,-552.29459695,0.00029689,2]
[341732011,1731161443881,-500.0,0.00029689,2]
[341732012,1731161443890,-276.3028056,0.00029689,2]
[341732013,1731161443899,-1000.0,0.00029699,7]
[341732014,1731161443909,-500.0,0.00029699,2]
[341732015,1731161443918,-198.24043552,0.00029699,2]
[341732016,1731161443927,-259.69464473,0.00029699,2]
[341732017,1731161443937,-551.6262316,0.00029699,2]
[341732018,1731161443946,-500.0,0.00029699,2]
[341732019,1731161443955,-500.0,0.00029699,2]
[341732020,1731161443964,-500.0,0.00029699,2]
[341732021,1731161443973,-500.0,0.00029699,2]
[341732022,1731161443983,-500.0,0.00029699,2]
[341732023,1731161443992,-181.78625131,0.00029699,2]
[341732024,1731161444001,-172.6912217,0.00029699,2]
[341732025,1731161444010,-307.85362273,0.00029699,2]
[341732026,1731161444019,-600.0,0.00029699,2]
[341732027,1731161444029,-61548.58660754,0.000297,2]
[341733818,1731162140930,176.109545,0.00013973,2]
[341733840,1731162525411,678.4047442,0.0002,2]
[341733871,1731162628024,266.322223,0.00031672,30]
[341734312,1731162638391,-503.82383748,0.00021917,2]
[341734313,1731162638401,-614.428703,0.00022205,2]
[341734314,1731162638410,-163.332811,0.00022297,2]
[341734315,1731162638420,-162.213847,0.0002259,2]
[341734316,1731162638429,-501.58757535,0.0002288,2]
[341734317,1731162638439,-614.428703,0.0002289,2]
[341734318,1731162638448,-500.0,0.0002326,2]
[341734319,1731162638457,-614.428703,0.00023575,2]
[341734320,1731162638466,-554.49841929,0.00023629,2]
[341734321,1731162638475,-307.17705922,0.00023688,2]
[341734322,1731162638485,-300.0,0.00024068,2]
[341734323,1731162638494,-300.0,0.00024068,2]
[341734324,1731162638503,-500.0,0.00024069,2]
[341734325,1731162638514,-500.0,0.00024069,2]
[341734326,1731162638523,-500.0,0.00024069,2]
[341734327,1731162638533,-500.0,0.00024069,2]
[341734328,1731162638542,-531.82821705,0.00024069,2]
[341734329,1731162638551,-500.0,0.00024069,2]
[341734330,1731162638560,-362.64,0.00024069,2]
[341734331,1731162638569,-500.0,0.00024069,2]
[341734332,1731162638579,-500.0,0.00024069,2]
[341734333,1731162638588,-500.0,0.00024069,2]
[341734334,1731162638598,-500.0,0.00024069,2]
[341734335,1731162638607,-500.0,0.00024069,2]
[341734336,1731162638619,-500.0,0.00024069,2]
[341734337,1731162638629,-500.0,0.00024069,2]
[341734338,1731162638638,-500.0,0.00024069,2]
[341734339,1731162638647,-500.0,0.00024069,2]
[341734340,1731162638656,-1411.57,0.00024069,2]
[341734341,1731162638665,-500.0,0.00024069,2]
[341734342,1731162638675,-505.08935456,0.00024069,2]
[341734343,1731162638683,-500.0,0.00024069,2]
[341734344,1731162638693,-500.0,0.00024069,2]
[341734345,1731162638702,-507.4034852,0.00024069,2]
[341734346,1731162638711,-500.0,0.00024069,2]
[341734347,1731162638721,-500.0,0.00024069,2]
[341734348,1731162638730,-500.0,0.00024069,2]
[341734349,1731162638739,-500.0,0.00024069,2]
[341734350,1731162638748,-500.0,0.00024069,2]
[341734351,1731162638758,-500.0,0.00024069,2]
[341734352,1731162638768,-500.0,0.00024069,2]
[341734353,1731162638778,-181.58384564,0.00024069,2]
[341734354,1731162638787,-500.0,0.00024069,2]
[341734355,1731162638796,-500.0,0.00024069,2]
[341734356,1731162638805,-500.0,0.00024069,2]
[341734357,1731162638815,-500.0,0.00024069,2]
[341734358,1731162638823,-500.0,0.00024069,2]
[341734359,1731162638832,-500.0,0.00024069,2]
[341734360,1731162638841,-500.0,0.00024069,2]
[341734361,1731162638850,-500.0,0.00024069,2]
[341734362,1731162638859,-500.0,0.00024069,2]
[341734363,1731162638868,-502.67830459,0.00024069,2]
[341734364,1731162638876,-500.0,0.00024069,2]
[341734365,1731162638885,-500.0,0.00024069,2]
[341734366,1731162638894,-500.0,0.00024069,2]
[341734367,1731162638903,-547.7228671,0.00024069,2]
[341734368,1731162638912,-500.0,0.0002407,2]
[341734369,1731162638921,-500.0,0.0002407,2]
[341734370,1731162638930,-506.56583498,0.0002407,2]
[341734371,1731162638939,-500.0,0.0002407,2]
[341734372,1731162638948,-500.0,0.0002407,2]
[341734373,1731162638957,-515.6673184,0.0002407,2]
[341734374,1731162638966,-500.0,0.0002407,2]
[341734375,1731162638975,-500.0,0.0002407,2]
[341734376,1731162638984,-500.0,0.0002407,2]
[341734377,1731162638993,-534.21381765,0.0002407,2]
[341734378,1731162639002,-505.01705267,0.0002407,2]
[341734379,1731162639011,-500.0,0.0002407,2]
[341734380,1731162639021,-500.0,0.0002407,2]
[341734381,1731162639030,-500.0,0.0002407,2]
[341734382,1731162639039,-500.0,0.0002407,2]
[341734383,1731162639047,-348.23077697,0.0002407,2]
[341734384,1731162639057,-500.0,0.0002407,2]
[341734385,1731162639066,-500.0,0.0002407,2]
[341734386,1731162639075,-531.19748863,0.0002407,2]
[341734387,1731162639084,-306.17366826,0.0002407,2]
[341734388,1731162639093,-528.19269926,0.0002407,2]
[341734389,1731162639102,-500.0,0.0002407,2]
[341734390,1731162639115,-512.22114221,0.0002407,2]
[341734391,1731162639124,-500.0,0.0002407,2]
[341734392,1731162639133,-500.0,0.0002407,2]
[341734393,1731162639142,-500.0,0.0002407,2]
[341734394,1731162639153,-500.0,0.0002407,2]
[341734395,1731162639162,-500.0,0.0002407,2]
[341734396,1731162639171,-500.0,0.0002407,2]
[341734397,1731162639182,-500.0,0.0002407,2]
[341734398,1731162639191,-500.0,0.0002407,2]
[341734399,1731162639200,-500.0,0.0002407,2]
[341734400,1731162639209,-500.0,0.0002407,2]
[341734401,1731162639219,-500.0,0.0002407,2]
[341734402,1731162639228,-1159.41930364,0.0002407,2]
[341734403,1731162639237,-501.19151732,0.00024242,2]
[341734405,1731162639365,-502.17679707,0.00024242,2]
[341734406,1731162639375,-541.99700002,0.00024343,2]
[341734407,1731162639384,-500.0,0.00024343,2]
[341734408,1731162639393,-500.0,0.00024343,2]
[341734409,1731162639403,-500.0,0.00024343,2]
[341734410,1731162639413,-500.0,0.00024343,2]
[341734411,1731162639422,-1411.57,0.00024343,2]
[341734412,1731162639432,-500.0,0.00024343,2]
[341734413,1731162639441,-500.0,0.00024343,2]
[341734414,1731162639450,-500.0,0.00024343,2]
[341734415,1731162639459,-500.0,0.00024343,2]
[341734416,1731162639468,-500.0,0.00024343,2]
[341734417,1731162639477,-500.0,0.00024343,2]
[341734418,1731162639487,-500.0,0.00024343,2]
[341734419,1731162639496,-500.0,0.00024344,2]
[341734420,1731162639505,-500.0,0.00024344,2]
[341734421,1731162639517,-500.0,0.00024344,2]
[341734422,1731162639526,-394.97,0.00024344,2]
[341734423,1731162639535,-500.0,0.00024344,2]
[341734424,1731162639544,-500.0,0.00024344,2]
[341734425,1731162639554,-500.0,0.00024344,2]
[341734426,1731162639563,-500.0,0.00024344,2]
[341734427,1731162639573,-500.0,0.00024556,2]
[341734428,1731162639582,-500.0,0.00024556,2]
[341734429,1731162639591,-500.0,0.00024583,2]
[341734430,1731162639600,-500.0,0.00024617,2]
[341734431,1731162639609,-500.0,0.00024617,2]
[341734433,1731162639618,-500.0,0.00024617,2]
[341734434,1731162639628,-1411.57,0.00024617,2]
[341734435,1731162639637,-484.44,0.00024617,2]
[341734436,1731162639646,-500.0,0.00024617,2]
[341734437,1731162639656,-500.0,0.00024617,2]
[341734438,1731162639665,-500.0,0.00024617,2]
[341734439,1731162639674,-500.0,0.00024617,2]
[341734440,1731162639683,-500.0,0.00024617,2]
[341734441,1731162639693,-500.0,0.00024617,2]
[341734442,1731162639702,-500.0,0.00024618,2]
[341734443,1731162639712,-500.0,0.00024618,2]
[341734444,1731162639721,-500.0,0.00024618,2]
[341734445,1731162639731,-578.06109041,0.00024618,2]
[341734446,1731162639740,-500.0,0.00024618,2]
[341734447,1731162639750,-192.46,0.00024618,2]
[341734448,1731162639759,-500.0,0.00024618,2]
[341734449,1731162639769,-153.21706322,0.00024633,2]
[341734451,1731162639779,-500.0,0.00024633,2]
[341734452,1731162639789,-381.54837724,0.00024663,2]
[341734453,1731162639798,-500.0,0.00024891,2]
[341734454,1731162639807,-500.0,0.00024891,2]
[341734455,1731162639816,-500.0,0.00024891,2]
[341734456,1731162639825,-1411.57,0.00024891,2]
[341734457,1731162639835,-500.0,0.00024891,2]
[341734458,1731162639844,-500.0,0.00024891,2]
[341734459,1731162639853,-500.0,0.00024891,2]
[341734460,1731162639862,-500.0,0.00024891,2]
[341734461,1731162639872,-500.0,0.00024891,2]
[341734462,1731162639881,-500.0,0.00024891,2]
[341734463,1731162639890,-252.92253396,0.00024891,2]
[341734465,1731162639899,-500.0,0.00024891,2]
[341734466,1731162639908,-500.0,0.00024891,2]
[341734468,1731162639917,-473.40465277,0.00024891,2]
[341734470,1731162639927,-343.40332121,0.00024892,2]
[341734472,1731162639936,-500.0,0.00024892,2]
[341734474,1731162639945,-4975.53747565,0.00025,2]
[341734476,1731162639955,-10636.50915305,0.0002509,2]
[341734479,1731162639965,-2764.15,0.00025145,10]
[341734481,1731162639974,-3980.37,0.00025155,10]
[341734483,1731162639983,-3316.98,0.00025155,10]
[341734484,1731162639993,-500.0,0.00025165,2]
[341734486,1731162640002,-500.0,0.00025165,2]
[341734487,1731162640014,-500.0,0.00025165,2]
[341734488,1731162640023,-1411.57,0.00025165,2]
[341734489,1731162640033,-500.0,0.00025165,2]
[341734490,1731162640043,-500.0,0.00025165,2]
[341734491,1731162640052,-500.0,0.00025165,2]
[341734492,1731162640062,-500.0,0.00025165,2]
[341734493,1731162640072,-500.0,0.00025165,2]
[341734494,1731162640081,-500.0,0.00025165,2]
[341734495,1731162640091,-500.0,0.00025166,2]
[341734496,1731162640100,-2087.32,0.00025399,10]
[341734497,1731162640113,-771.24,0.00025409,3]
[341734498,1731162640122,-514.15,0.00025419,3]
[341734499,1731162640132,-257.07,0.00025419,3]
[341734500,1731162640141,-1028.3,0.00025429,3]
[341734501,1731162640152,-392.36583933,0.00025439,2]
[341734502,1731162640162,-500.0,0.00025439,2]
[341734503,1731162640172,-500.0,0.00025439,2]
[341734504,1731162640183,-1411.57,0.00025439,2]
[341734505,1731162640193,-500.0,0.00025439,2]
[341734506,1731162640203,-500.0,0.00025439,2]
[341734507,1731162640212,-547.6458971,0.00025439,2]
[341734508,1731162640221,-500.0,0.00025439,2]
[341734509,1731162640230,-500.0,0.00025439,2]
[341734510,1731162640239,-500.0,0.00025439,2]
[341734511,1731162640249,-500.0,0.0002544,2]
[341734512,1731162640258,-500.0,0.00025713,2]
[341734513,1731162640269,-500.0,0.00025713,2]
[341734514,1731162640279,-1411.57,0.00025713,2]
[341734515,1731162640289,-500.0,0.00025713,2]
[341734516,1731162640298,-500.0,0.00025713,2]
[341734517,1731162640308,-485.50341476,0.00025713,2]
[341734518,1731162640317,-500.0,0.00025713,2]
[341734519,1731162640326,-500.0,0.00025713,2]
[341734520,1731162640335,-500.0,0.00025714,2]
[341734521,1731162640344,-1000.0,0.00025926,2]
[341734522,1731162640353,-226.761,0.00025966,11]
[341734523,1731162640363,-500.0,0.00025987,2]
[341734524,1731162640372,-526.82036076,0.00025987,2]
[341734525,1731162640381,-1411.57,0.00025987,2]
[341734527,1731162640390,-500.0,0.00025987,2]
[341734529,1731162640400,-500.0,0.00025987,2]
[341734530,1731162640410,-156.26955617,0.00025987,2]
[341734532,1731162640420,-551.16974633,0.00025987,2]
[341734534,1731162640429,-500.0,0.00026027,2]
[341734536,1731162640439,-152.48619171,0.00026027,2]
[341734538,1731162640449,-420.0,0.00026099,2]
[341734539,1731162640458,-673.87342071,0.00026142,2]
[341734540,1731162640467,-500.0,0.00026261,2]
[341734541,1731162640476,-1411.57,0.00026261,2]
[341734542,1731162640485,-500.0,0.00026261,2]
[341734543,1731162640494,-500.0,0.00026535,2]
[341734544,1731162640503,-1411.57,0.00026535,2]
[341734545,1731162640514,-500.0,0.00026535,2]
[341734546,1731162640523,-1028.3,0.00026789,3]
[341734547,1731162640532,-514.14,0.00026789,3]
[341734548,1731162640541,-2056.6,0.00026799,3]
[341734549,1731162640551,-500.0,0.00026809,2]
[341734550,1731162640561,-1411.57,0.00026809,2]
[341734551,1731162640570,-500.0,0.00026809,2]
[341734552,1731162640579,-824.90843741,0.00026983,2]
[341734553,1731162640589,-3084.9,0.00027063,3]
[341734554,1731162640599,-500.0,0.00027083,2]
[341734555,1731162640609,-1411.57,0.00027083,2]
[341734556,1731162640619,-500.0,0.00027083,2]
[341734557,1731162640628,-673.87342071,0.00027228,2]
[341734558,1731162640637,-1130.0,0.00027248,2]
[341734559,1731162640647,-2393.0,0.00027248,2]
[341734560,1731162640656,-500.0,0.00027357,2]
[341734561,1731162640665,-1411.57,0.00027357,2]
[341734562,1731162640675,-446.79326101,0.00027357,2]
[341734563,1731162640684,-3395.353948,0.00027397,2]
[341734564,1731162640694,-500.0,0.00027631,2]
[341734565,1731162640703,-1411.57,0.00027631,2]
[341734566,1731162640712,-824.90843737,0.00027637,2]
[341734567,1731162640722,-1020.78,0.000279,2]
[341734568,1731162640731,-151.0,0.000279,7]
[341734569,1731162640740,-151.0,0.000279,7]
[341734570,1731162640750,-500.0,0.00027905,2]
[341734571,1731162640762,-1411.57,0.00027905,2]
[341734572,1731162640771,-200.0,0.0002813,20]
[341734573,1731162640782,-500.0,0.00028179,2]
[341734574,1731162640791,-1411.57,0.00028179,2]
[341734576,1731162640800,-824.90843737,0.00028292,2]
[341734577,1731162640810,-587.0,0.000283,2]
[341734578,1731162640819,-673.87342071,0.00028314,2]
[341734579,1731162640828,-500.0,0.00028453,2]
[341734580,1731162640837,-1411.57,0.00028453,2]
[341734581,1731162640846,-501.726989,0.000286,5]
[341734582,1731162640855,-211.6,0.00028727,2]
[341734583,1731162640865,-1411.57,0.00028727,2]
[341734584,1731162640874,-7812.21635549,0.00028935,2]
[341734585,1731162640884,-824.90843737,0.00028946,2]
[341734586,1731162640893,-1411.57,0.00029001,2]
[341734587,1731162640902,-151.0,0.00029029,7]
[341734588,1731162640911,-151.0,0.00029029,7]
[341734589,1731162640920,-151.0,0.00029029,7]
[341734590,1731162640930,-151.0,0.00029029,7]
[341734591,1731162640939,-500.0,0.00029039,2]
[341734592,1731162640949,-500.0,0.00029039,2]
[341734593,1731162640958,-500.0,0.00029039,2]
[341734594,1731162640967,-500.0,0.00029039,2]
[341734595,1731162640977,-623.43,0.00029039,2]
[341734596,1731162640986,-500.0,0.00029039,2]
[341734597,1731162640995,-500.0,0.00029039,2]
[341734598,1731162641004,-643.62435138,0.00029039,2]
[341734599,1731162641015,-500.0,0.00029039,2]
[341734600,1731162641028,-500.0,0.00029039,2]
[341734601,1731162641037,-504.31897831,0.00029039,2]
[341734602,1731162641047,-506.84153475,0.00029039,2]
[341734603,1731162641056,-359.45162605,0.00029039,2]
[341734604,1731162641065,-505.97552978,0.00029039,2]
[341734605,1731162641074,-500.0,0.00029039,2]
[341734606,1731162641083,-502.66137345,0.00029039,2]
[341734607,1731162641092,-500.0,0.00029039,2]
[341734608,1731162641102,-501.57928355,0.00029039,2]
[341734609,1731162641115,-502.42998683,0.00029039,2]
[341734610,1731162641124,-514.55172765,0.00029039,2]
[341734611,1731162641134,-505.16650514,0.00029039,2]
[341734612,1731162641143,-500.0,0.00029039,2]
[341734613,1731162641154,-500.0,0.00029039,2]
[341734614,1731162641163,-500.0,0.00029039,2]
[341734615,1731162641172,-500.0,0.00029039,2]
[341734616,1731162641184,-500.0,0.00029039,2]